[Event "Titled Tuesday Blitz May 2 Late 2023"]
[White "Lohia, Sohum"]
[Black "Marcziter, Dmitrii"]
[WhiteFideId "5819369"]
[BlackFideId "13900765"]
[WhiteElo "2036"]
[BlackElo "2162"]
[Result "1-0"]
[Round "02"]
[TimeControl "180+2"]
[Date "2023.05.02"]
[WhiteClock "0:00:31"]
[BlackClock "0:00:21"]

1. e4 {[%clk 0:03:00]}  c5 {[%clk 0:02:59]} 2. Nf3 {[%clk 0:03:00]}  a6 {[%clk 0:02:59]} 3. g3 {[%clk 0:02:58]}  d5 {[%clk 0:02:59]} 4. exd5 {[%clk 0:02:57]}  Qxd5 {[%clk 0:02:59]} 5. Bg2 {[%clk 0:02:58]}  Bg4 {[%clk 0:02:58]} 6. h3 {[%clk 0:02:58]}  Qe6+ {[%clk 0:02:50]} 7. Kf1 {[%clk 0:02:55]}  Bf5 {[%clk 0:02:44]} 8. d3 {[%clk 0:02:46]}  Nc6 {[%clk 0:02:41]} 9. Nc3 {[%clk 0:02:42]}  Nf6 {[%clk 0:02:38]} 10. Nh4 {[%clk 0:02:37]}  Bg6 {[%clk 0:02:34]} 11. Nxg6 {[%clk 0:02:36]}  hxg6 {[%clk 0:02:34]} 12. Be3 {[%clk 0:02:35]}  Qd6 {[%clk 0:02:31]} 13. Qf3 {[%clk 0:02:26]}  e6 {[%clk 0:02:27]} 14. Ne4 {[%clk 0:02:25]}  Nxe4 {[%clk 0:02:26]} 15. Qxe4 {[%clk 0:02:25]}  Be7 {[%clk 0:02:23]} 16. Kg1 {[%clk 0:01:59]}  O-O-O {[%clk 0:02:18]} 17. Kh2 {[%clk 0:01:52]}  g5 {[%clk 0:02:16]} 18. b4 {[%clk 0:01:49]}  cxb4 {[%clk 0:02:09]} 19. Rab1 {[%clk 0:01:43]}  f5 {[%clk 0:02:07]} 20. Qc4 {[%clk 0:01:11]}  g4 {[%clk 0:01:47]} 21. a3 {[%clk 0:01:00]}  Kb8 {[%clk 0:01:25]} 22. axb4 {[%clk 0:00:49]}  Ne5 {[%clk 0:01:23]} 23. Qc5 {[%clk 0:00:40]}  Nf3+ {[%clk 0:01:08]} 24. Bxf3 {[%clk 0:00:35]}  Rxh3+ {[%clk 0:01:01]} 25. Kg1 {[%clk 0:00:32]}  Rxg3+ {[%clk 0:00:50]} 26. fxg3 {[%clk 0:00:28]}  Qxg3+ {[%clk 0:00:49]} 27. Bg2 {[%clk 0:00:29]}  Bxc5 {[%clk 0:00:49]} 28. Bxc5 {[%clk 0:00:29]}  f4 {[%clk 0:00:46]} 29. Bf2 {[%clk 0:00:27]}  Qxg2+ {[%clk 0:00:21]} 30. Kxg2 {[%clk 0:00:27]}  g5 {[%clk 0:00:21]} 31. b5 {[%clk 0:00:25]}  a5 {[%clk 0:00:20]} 32. Rh5 {[%clk 0:00:23]}  Rg8 {[%clk 0:00:20]} 33. Rbh1 {[%clk 0:00:22]}  g3 {[%clk 0:00:20]} 34. Bxg3 {[%clk 0:00:20]}  fxg3 {[%clk 0:00:19]} 35. Rh8 {[%clk 0:00:21]}  Rxh8 {[%clk 0:00:17]} 36. Rxh8+ {[%clk 0:00:21]}  Kc7 {[%clk 0:00:18]} 37. Kxg3 {[%clk 0:00:22]}  Kb6 {[%clk 0:00:17]} 38. Kg4 {[%clk 0:00:23]}  Kxb5 {[%clk 0:00:17]} 39. Kxg5 {[%clk 0:00:24]}  Kb4 {[%clk 0:00:17]} 40. Kf6 {[%clk 0:00:24]}  b5 {[%clk 0:00:17]} 41. Kxe6 {[%clk 0:00:25]}  a4 {[%clk 0:00:18]} 42. d4 {[%clk 0:00:25]}  a3 {[%clk 0:00:19]} 43. d5 {[%clk 0:00:26]}  a2 {[%clk 0:00:19]} 44. Ra8 {[%clk 0:00:26]}  Kc3 {[%clk 0:00:19]} 45. d6 {[%clk 0:00:27]}  Kb2 {[%clk 0:00:19]} 46. d7 {[%clk 0:00:27]}  a1=Q {[%clk 0:00:19]} 47. Rxa1 {[%clk 0:00:27]}  Kxa1 {[%clk 0:00:20]} 48. d8=Q {[%clk 0:00:27]}  Kb2 {[%clk 0:00:21]} 49. Qb6 {[%clk 0:00:28]}  Kxc2 {[%clk 0:00:22]} 50. Qxb5 {[%clk 0:00:28]}  Kc3 {[%clk 0:00:22]} 51. Kd5 {[%clk 0:00:29]}  Kd2 {[%clk 0:00:21]} 52. Qb3 {[%clk 0:00:29]}  Ke2 {[%clk 0:00:21]} 53. Qc3 {[%clk 0:00:29]}  Kf2 {[%clk 0:00:21]} 54. Qd3 {[%clk 0:00:30]}  Kg2 {[%clk 0:00:22]} 55. Ke4 {[%clk 0:00:30]}  Kh2 {[%clk 0:00:22]} 56. Kf3 {[%clk 0:00:30]}  Kg1 {[%clk 0:00:20]} 57. Qe2 {[%clk 0:00:30]}  Kh1 {[%clk 0:00:21]} 58. Qg2# {[%clk 0:00:31]} 1-0


[Site "https://www.chess.com"]

[Event "Titled Tuesday Blitz May 2 Late 2023"]
[White "Pakleza, Zbigniew"]
[Black "Duda, Jan-Krzysztof"]
[WhiteFideId "1119290"]
[BlackFideId "1170546"]
[WhiteElo "2410"]
[BlackElo "2790"]
[Result "0-1"]
[Round "03"]
[TimeControl "180+2"]
[Date "2023.05.02"]
[WhiteClock "0:00:02"]
[BlackClock "0:00:31"]

1. d4 {[%clk 0:03:00]}  b6 {[%clk 0:02:51]} 2. e4 {[%clk 0:02:59]}  Bb7 {[%clk 0:02:51]} 3. Bd3 {[%clk 0:03:00]}  d6 {[%clk 0:02:50]} 4. Nf3 {[%clk 0:02:58]}  Nd7 {[%clk 0:02:50]} 5. O-O {[%clk 0:02:55]}  e6 {[%clk 0:02:49]} 6. Qe2 {[%clk 0:02:45]}  a6 {[%clk 0:02:49]} 7. c3 {[%clk 0:02:40]}  Ne7 {[%clk 0:02:49]} 8. a4 {[%clk 0:02:37]}  h6 {[%clk 0:02:48]} 9. Nbd2 {[%clk 0:02:35]}  g5 {[%clk 0:02:46]} 10. e5 {[%clk 0:02:18]}  g4 {[%clk 0:02:35]} 11. Ne1 {[%clk 0:02:07]}  dxe5 {[%clk 0:02:33]} 12. dxe5 {[%clk 0:02:05]}  Nc6 {[%clk 0:02:23]} 13. f4 {[%clk 0:01:47]}  gxf3 {[%clk 0:02:17]} 14. Nexf3 {[%clk 0:01:46]}  Rg8 {[%clk 0:02:00]} 15. Bh7 {[%clk 0:01:39]}  Rg7 {[%clk 0:01:51]} 16. Be4 {[%clk 0:01:40]}  Nc5 {[%clk 0:01:49]} 17. Nc4 {[%clk 0:01:30]}  Nxe4 {[%clk 0:01:37]} 18. Qxe4 {[%clk 0:01:30]}  h5 {[%clk 0:01:24]} 19. Qe2 {[%clk 0:01:02]}  Qd5 {[%clk 0:01:14]} 20. Bh6 {[%clk 0:00:52]}  Rg4 {[%clk 0:01:03]} 21. Ne3 {[%clk 0:00:37]}  Bc5 {[%clk 0:01:02]} 22. b4 {[%clk 0:00:30]}  Bxe3+ {[%clk 0:00:58]} 23. Qxe3 {[%clk 0:00:29]}  Nxe5 {[%clk 0:00:55]} 24. Kh1 {[%clk 0:00:19]}  Nxf3 {[%clk 0:00:41]} 25. gxf3 {[%clk 0:00:20]}  O-O-O {[%clk 0:00:40]} 26. a5 {[%clk 0:00:14]}  bxa5 {[%clk 0:00:35]} 27. h3 {[%clk 0:00:02]}  Rg3 {[%clk 0:00:33]} 28. Kh2 {[%clk 0:00:02]}  Rdg8 {[%clk 0:00:32]} 29. Rf2 {[%clk 0:00:02]}  Qf5 {[%clk 0:00:31]} 0-1


[Site "https://www.chess.com"]

[Event "Titled Tuesday Blitz May 2 Late 2023"]
[White "Szpar, Milosz"]
[Black "Sarana, Alexey"]
[WhiteFideId "1184989"]
[BlackFideId "24133795"]
[WhiteElo "2436"]
[BlackElo "2714"]
[Result "0-1"]
[Round "03"]
[TimeControl "180+2"]
[Date "2023.05.02"]
[WhiteClock "0:00:01"]
[BlackClock "0:00:03"]

1. e4 {[%clk 0:03:00]}  c5 {[%clk 0:02:57]} 2. c3 {[%clk 0:03:00]}  Nf6 {[%clk 0:02:56]} 3. e5 {[%clk 0:03:00]}  Nd5 {[%clk 0:02:56]} 4. d4 {[%clk 0:03:00]}  cxd4 {[%clk 0:02:57]} 5. Nf3 {[%clk 0:02:59]}  d6 {[%clk 0:02:58]} 6. exd6 {[%clk 0:02:55]}  Qxd6 {[%clk 0:02:49]} 7. Nxd4 {[%clk 0:02:55]}  a6 {[%clk 0:02:43]} 8. Na3 {[%clk 0:02:41]}  e6 {[%clk 0:02:33]} 9. Nc4 {[%clk 0:02:38]}  Qc7 {[%clk 0:02:33]} 10. a4 {[%clk 0:02:36]}  Bc5 {[%clk 0:02:31]} 11. Ne3 {[%clk 0:02:09]}  Nxe3 {[%clk 0:02:06]} 12. Bxe3 {[%clk 0:02:10]}  e5 {[%clk 0:02:05]} 13. Nc2 {[%clk 0:02:07]}  O-O {[%clk 0:02:05]} 14. Bd3 {[%clk 0:01:59]}  Be6 {[%clk 0:02:03]} 15. O-O {[%clk 0:01:52]}  Nd7 {[%clk 0:02:02]} 16. Qe2 {[%clk 0:01:48]}  Rae8 {[%clk 0:01:37]} 17. Bc4 {[%clk 0:01:44]}  Bf5 {[%clk 0:01:31]} 18. Bxc5 {[%clk 0:01:40]}  Nxc5 {[%clk 0:01:22]} 19. Ne3 {[%clk 0:01:40]}  Bg6 {[%clk 0:01:22]} 20. a5 {[%clk 0:01:30]}  Kh8 {[%clk 0:01:20]} 21. Nd5 {[%clk 0:01:23]}  Qc6 {[%clk 0:01:19]} 22. Rfd1 {[%clk 0:01:05]}  e4 {[%clk 0:01:17]} 23. Nf4 {[%clk 0:00:57]}  Re5 {[%clk 0:01:10]} 24. Rd4 {[%clk 0:00:53]}  Qf6 {[%clk 0:01:07]} 25. Qe3 {[%clk 0:00:51]}  Nd3 {[%clk 0:00:58]} 26. Bxd3 {[%clk 0:00:20]}  exd3 {[%clk 0:00:56]} 27. Qd2 {[%clk 0:00:15]}  Rfe8 {[%clk 0:00:36]} 28. h4 {[%clk 0:00:14]}  Bf5 {[%clk 0:00:14]} 29. Nxd3 {[%clk 0:00:09]}  Bxd3 {[%clk 0:00:13]} 30. Qxd3 {[%clk 0:00:07]}  h6 {[%clk 0:00:14]} 31. Qf3 {[%clk 0:00:06]}  Rf5 {[%clk 0:00:13]} 32. Qg3 {[%clk 0:00:05]}  Re2 {[%clk 0:00:12]} 33. Rf1 {[%clk 0:00:05]}  Rxb2 {[%clk 0:00:11]} 34. Qb8+ {[%clk 0:00:04]}  Kh7 {[%clk 0:00:11]} 35. Rd8 {[%clk 0:00:05]}  Qxh4 {[%clk 0:00:07]} 36. Rh8+ {[%clk 0:00:04]}  Kg6 {[%clk 0:00:08]} 37. Qd6+ {[%clk 0:00:02]}  Qf6 {[%clk 0:00:08]} 38. Qd3 {[%clk 0:00:02]}  h5 {[%clk 0:00:06]} 39. Qh3 {[%clk 0:00:01]}  Qg5 {[%clk 0:00:04]} 40. Qd3 {[%clk 0:00:01]}  Qf4 {[%clk 0:00:03]} 41. Rd8 {[%clk 0:00:01]}  Rxf2 {[%clk 0:00:03]} 42. Rd6+ {[%clk 0:00:01]}  f6 {[%clk 0:00:02]} 43. Re1 {[%clk 0:00:02]}  Qg5 {[%clk 0:00:01]} 44. Qe4 {[%clk 0:00:01]}  Rf4 {[%clk 0:00:02]} 45. Qxb7 {[%clk 0:00:01]}  Rg4 {[%clk 0:00:02]} 46. Rd7 {[%clk 0:00:01]}  Kh6 {[%clk 0:00:02]} 47. Re8 {[%clk 0:00:01]}  Qc1+ {[%clk 0:00:02]} 48. Kh2 {[%clk 0:00:01]}  Rh4+ {[%clk 0:00:03]} 49. Kg3 {[%clk 0:00:01]}  Qf4# {[%clk 0:00:03]} 0-1


[Site "https://www.chess.com"]

[Event "Titled Tuesday Blitz May 2 Late 2023"]
[White "Maghsoodloo, Parham"]
[Black "Samsonkin, Artiom"]
[WhiteFideId "12539929"]
[BlackFideId "13503111"]
[WhiteElo "2647"]
[BlackElo "2524"]
[Result "1/2-1/2"]
[Round "03"]
[TimeControl "180+2"]
[Date "2023.05.02"]
[WhiteClock "0:00:07"]
[BlackClock "0:00:11"]

1. d4 {[%clk 0:01:09]}  Nf6 {[%clk 0:02:59]} 2. c4 {[%clk 0:01:09]}  e6 {[%clk 0:02:59]} 3. Nf3 {[%clk 0:01:10]}  Bb4+ {[%clk 0:02:59]} 4. Bd2 {[%clk 0:01:08]}  Qe7 {[%clk 0:02:59]} 5. g3 {[%clk 0:01:06]}  Nc6 {[%clk 0:02:58]} 6. Bg2 {[%clk 0:01:06]}  Bxd2+ {[%clk 0:02:58]} 7. Nbxd2 {[%clk 0:01:05]}  d6 {[%clk 0:02:58]} 8. O-O {[%clk 0:01:05]}  e5 {[%clk 0:02:58]} 9. e3 {[%clk 0:01:03]}  O-O {[%clk 0:02:57]} 10. h3 {[%clk 0:01:02]}  a5 {[%clk 0:02:56]} 11. a3 {[%clk 0:00:58]}  Bf5 {[%clk 0:02:41]} 12. Qb3 {[%clk 0:00:55]}  a4 {[%clk 0:02:28]} 13. Qc3 {[%clk 0:00:55]}  Ne4 {[%clk 0:02:23]} 14. Nxe4 {[%clk 0:00:47]}  Bxe4 {[%clk 0:02:24]} 15. Rad1 {[%clk 0:00:43]}  exd4 {[%clk 0:02:04]} 16. exd4 {[%clk 0:00:42]}  Qf6 {[%clk 0:02:00]} 17. Rfe1 {[%clk 0:00:36]}  Rfe8 {[%clk 0:01:58]} 18. Re3 {[%clk 0:00:33]}  Re7 {[%clk 0:01:23]} 19. Nh4 {[%clk 0:00:20]}  Bxg2 {[%clk 0:01:19]} 20. Nxg2 {[%clk 0:00:20]}  Rae8 {[%clk 0:01:14]} 21. Rf3 {[%clk 0:00:19]}  Qg5 {[%clk 0:00:49]} 22. Nf4 {[%clk 0:00:17]}  Qa5 {[%clk 0:00:39]} 23. Nd5 {[%clk 0:00:08]}  Re1+ {[%clk 0:00:38]} 24. Rxe1 {[%clk 0:00:08]}  Rxe1+ {[%clk 0:00:38]} 25. Kg2 {[%clk 0:00:09]}  Qxc3 {[%clk 0:00:39]} 26. bxc3 {[%clk 0:00:10]}  Na5 {[%clk 0:00:32]} 27. Nxc7 {[%clk 0:00:08]}  Nxc4 {[%clk 0:00:32]} 28. Rf5 {[%clk 0:00:05]}  Ra1 {[%clk 0:00:19]} 29. Rb5 {[%clk 0:00:05]}  Rxa3 {[%clk 0:00:20]} 30. Rxb7 {[%clk 0:00:06]}  h6 {[%clk 0:00:19]} 31. Nd5 {[%clk 0:00:06]}  Rb3 {[%clk 0:00:19]} 32. Rc7 {[%clk 0:00:06]}  Nb2 {[%clk 0:00:14]} 33. Ne7+ {[%clk 0:00:06]}  Kh7 {[%clk 0:00:14]} 34. Nf5 {[%clk 0:00:07]}  a3 {[%clk 0:00:14]} 35. Nxd6 {[%clk 0:00:06]}  Na4 {[%clk 0:00:12]} 36. Ra7 {[%clk 0:00:07]}  Nxc3 {[%clk 0:00:12]} 37. Nxf7 {[%clk 0:00:08]}  a2 {[%clk 0:00:13]} 38. d5 {[%clk 0:00:08]}  Rb1 {[%clk 0:00:13]} 39. d6 {[%clk 0:00:09]}  Rb7 {[%clk 0:00:09]} 40. Rxb7 {[%clk 0:00:07]}  a1=Q {[%clk 0:00:09]} 41. d7 {[%clk 0:00:08]}  Qa8 {[%clk 0:00:10]} 42. d8=Q {[%clk 0:00:03]}  Qxb7+ {[%clk 0:00:10]} 43. Kh2 {[%clk 0:00:04]}  Qxf7 {[%clk 0:00:10]} 44. Qd3+ {[%clk 0:00:04]}  Kh8 {[%clk 0:00:09]} 45. Qxc3 {[%clk 0:00:05]}  Qxf2+ {[%clk 0:00:10]} 46. Kh1 {[%clk 0:00:05]}  Qf1+ {[%clk 0:00:10]} 47. Kh2 {[%clk 0:00:06]}  Qf2+ {[%clk 0:00:11]} 48. Kh1 {[%clk 0:00:07]}  Qf1+ {[%clk 0:00:12]} 49. Kh2 {[%clk 0:00:07]}  Qf2+ {[%clk 0:00:11]} 1/2-1/2


[Site "https://www.chess.com"]

[Event "Titled Tuesday Blitz May 2 Late 2023"]
[White "Sun, Rick"]
[Black "Bortnyk, Mykola"]
[WhiteFideId "30909481"]
[BlackFideId "14120836"]
[WhiteElo "2169"]
[BlackElo "2582"]
[Result "0-1"]
[Round "03"]
[TimeControl "180+2"]
[Date "2023.05.02"]
[WhiteClock "0:00:06"]
[BlackClock "0:00:50"]

1. d4 {[%clk 0:03:00]}  d5 {[%clk 0:02:59]} 2. Nc3 {[%clk 0:03:00]}  Nf6 {[%clk 0:02:58]} 3. Bf4 {[%clk 0:03:00]}  e6 {[%clk 0:02:58]} 4. e3 {[%clk 0:03:01]}  Bd6 {[%clk 0:02:52]} 5. Nf3 {[%clk 0:02:59]}  c5 {[%clk 0:02:49]} 6. dxc5 {[%clk 0:02:59]}  Bxc5 {[%clk 0:02:49]} 7. Bd3 {[%clk 0:02:58]}  Nc6 {[%clk 0:02:49]} 8. O-O {[%clk 0:02:59]}  Qe7 {[%clk 0:02:48]} 9. e4 {[%clk 0:02:57]}  d4 {[%clk 0:02:42]} 10. e5 {[%clk 0:02:57]}  dxc3 {[%clk 0:02:37]} 11. exf6 {[%clk 0:02:57]}  gxf6 {[%clk 0:02:37]} 12. bxc3 {[%clk 0:02:55]}  e5 {[%clk 0:02:36]} 13. Bg3 {[%clk 0:02:52]}  Bg4 {[%clk 0:02:30]} 14. h3 {[%clk 0:02:44]}  Be6 {[%clk 0:02:25]} 15. Qe2 {[%clk 0:02:20]}  O-O-O {[%clk 0:02:22]} 16. Be4 {[%clk 0:01:59]}  Na5 {[%clk 0:02:09]} 17. Rfd1 {[%clk 0:01:24]}  h5 {[%clk 0:01:59]} 18. Rab1 {[%clk 0:01:13]}  Bb6 {[%clk 0:01:48]} 19. Kh1 {[%clk 0:00:48]}  Rhg8 {[%clk 0:01:36]} 20. Bh2 {[%clk 0:00:23]}  f5 {[%clk 0:01:30]} 21. Bd3 {[%clk 0:00:16]}  e4 {[%clk 0:01:31]} 22. Bxe4 {[%clk 0:00:16]}  fxe4 {[%clk 0:01:31]} 23. Qxe4 {[%clk 0:00:17]}  Rxd1+ {[%clk 0:01:27]} 24. Rxd1 {[%clk 0:00:17]}  Rd8 {[%clk 0:01:16]} 25. Nd4 {[%clk 0:00:15]}  Bc7 {[%clk 0:01:10]} 26. Bxc7 {[%clk 0:00:08]}  Qxc7 {[%clk 0:01:11]} 27. Rd3 {[%clk 0:00:08]}  Bc4 {[%clk 0:01:04]} 28. Rf3 {[%clk 0:00:07]}  Bd5 {[%clk 0:01:04]} 29. Qf5+ {[%clk 0:00:07]}  Qd7 {[%clk 0:01:04]} 30. Qxd7+ {[%clk 0:00:07]}  Rxd7 {[%clk 0:01:05]} 31. Rf5 {[%clk 0:00:07]}  Nc6 {[%clk 0:01:04]} 32. Rxh5 {[%clk 0:00:07]}  Nxd4 {[%clk 0:01:04]} 33. cxd4 {[%clk 0:00:08]}  Bxa2 {[%clk 0:01:04]} 34. Rh8+ {[%clk 0:00:08]}  Kc7 {[%clk 0:01:05]} 35. c3 {[%clk 0:00:09]}  a5 {[%clk 0:01:03]} 36. h4 {[%clk 0:00:10]}  Rd8 {[%clk 0:00:58]} 37. Rh5 {[%clk 0:00:07]}  Ra8 {[%clk 0:00:57]} 38. g4 {[%clk 0:00:04]}  a4 {[%clk 0:00:57]} 39. g5 {[%clk 0:00:03]}  Bb1 {[%clk 0:00:57]} 40. Rh6 {[%clk 0:00:03]}  a3 {[%clk 0:00:57]} 41. Rf6 {[%clk 0:00:04]}  a2 {[%clk 0:00:55]} 42. Rxf7+ {[%clk 0:00:05]}  Kc6 {[%clk 0:00:56]} 43. Rf6+ {[%clk 0:00:05]}  Kd7 {[%clk 0:00:55]} 44. Kg2 {[%clk 0:00:05]}  a1=Q {[%clk 0:00:54]} 45. Kg3 {[%clk 0:00:05]}  Qxc3+ {[%clk 0:00:53]} 46. Rf3 {[%clk 0:00:05]}  Qxd4 {[%clk 0:00:53]} 47. Re3 {[%clk 0:00:06]}  Rf8 {[%clk 0:00:51]} 48. Re2 {[%clk 0:00:04]}  Qf4+ {[%clk 0:00:51]} 49. Kg2 {[%clk 0:00:04]}  Qf3+ {[%clk 0:00:51]} 50. Kg1 {[%clk 0:00:04]}  Qxe2 {[%clk 0:00:51]} 51. g6 {[%clk 0:00:05]}  Qxf2+ {[%clk 0:00:51]} 52. Kh1 {[%clk 0:00:06]}  Be4# {[%clk 0:00:50]} 0-1


[Site "https://www.chess.com"]

[Event "Titled Tuesday Blitz May 2 Late 2023"]
[White "Papasimakopoulos, Alexandros"]
[Black "Sargsyan, Shant"]
[WhiteFideId "4244125"]
[BlackFideId "13306766"]
[WhiteElo "2359"]
[BlackElo "2628"]
[Result "0-1"]
[Round "03"]
[TimeControl "180+2"]
[Date "2023.05.02"]
[WhiteClock "0:00:08"]
[BlackClock "0:01:40"]

1. d4 {[%clk 0:03:00]}  g6 {[%clk 0:02:59]} 2. c4 {[%clk 0:03:01]}  Nf6 {[%clk 0:02:59]} 3. Nc3 {[%clk 0:03:01]}  Bg7 {[%clk 0:03:00]} 4. e4 {[%clk 0:03:01]}  O-O {[%clk 0:03:01]} 5. f3 {[%clk 0:03:02]}  c5 {[%clk 0:02:58]} 6. d5 {[%clk 0:03:01]}  e6 {[%clk 0:02:58]} 7. Nge2 {[%clk 0:03:02]}  exd5 {[%clk 0:02:58]} 8. cxd5 {[%clk 0:03:03]}  a6 {[%clk 0:02:59]} 9. a4 {[%clk 0:03:02]}  d6 {[%clk 0:02:59]} 10. Ng3 {[%clk 0:03:02]}  Nbd7 {[%clk 0:02:59]} 11. Be2 {[%clk 0:03:02]}  h5 {[%clk 0:02:59]} 12. O-O {[%clk 0:03:02]}  Re8 {[%clk 0:02:57]} 13. Bg5 {[%clk 0:03:00]}  Qb6 {[%clk 0:02:54]} 14. Qd2 {[%clk 0:03:01]}  Nh7 {[%clk 0:02:54]} 15. a5 {[%clk 0:02:55]}  Qc7 {[%clk 0:02:52]} 16. Bf4 {[%clk 0:02:30]}  Rb8 {[%clk 0:02:52]} 17. Nh1 {[%clk 0:02:21]}  b5 {[%clk 0:02:51]} 18. axb6 {[%clk 0:02:21]}  Qxb6 {[%clk 0:02:50]} 19. Ra2 {[%clk 0:02:20]}  Ne5 {[%clk 0:02:49]} 20. Nf2 {[%clk 0:02:18]}  h4 {[%clk 0:02:20]} 21. h3 {[%clk 0:02:15]}  g5 {[%clk 0:02:07]} 22. Bxg5 {[%clk 0:01:58]}  Nxg5 {[%clk 0:02:07]} 23. Qxg5 {[%clk 0:01:59]}  Ng6 {[%clk 0:02:07]} 24. f4 {[%clk 0:01:55]}  Qd8 {[%clk 0:02:06]} 25. Qxd8 {[%clk 0:01:44]}  Rxd8 {[%clk 0:02:07]} 26. e5 {[%clk 0:01:23]}  Nxf4 {[%clk 0:02:06]} 27. Bxa6 {[%clk 0:01:20]}  Bxa6 {[%clk 0:02:05]} 28. Rxa6 {[%clk 0:01:21]}  Bxe5 {[%clk 0:02:05]} 29. Ng4 {[%clk 0:01:17]}  Rxb2 {[%clk 0:02:02]} 30. Nxe5 {[%clk 0:01:17]}  dxe5 {[%clk 0:02:03]} 31. Rc6 {[%clk 0:00:51]}  Kg7 {[%clk 0:02:00]} 32. Rxc5 {[%clk 0:00:42]}  Rxg2+ {[%clk 0:02:00]} 33. Kh1 {[%clk 0:00:42]}  Rg3 {[%clk 0:02:01]} 34. Rg1 {[%clk 0:00:34]}  f5 {[%clk 0:01:57]} 35. Re1 {[%clk 0:00:22]}  Rxh3+ {[%clk 0:01:56]} 36. Kg1 {[%clk 0:00:23]}  Rg3+ {[%clk 0:01:56]} 37. Kh1 {[%clk 0:00:19]}  Kf6 {[%clk 0:01:56]} 38. Rc6+ {[%clk 0:00:19]}  Kg5 {[%clk 0:01:56]} 39. Rxe5 {[%clk 0:00:18]}  Kg4 {[%clk 0:01:56]} 40. Ne2 {[%clk 0:00:15]}  Nxe2 {[%clk 0:01:52]} 41. Rxe2 {[%clk 0:00:15]}  Rxd5 {[%clk 0:01:51]} 42. Kh2 {[%clk 0:00:15]}  f4 {[%clk 0:01:42]} 43. Rc8 {[%clk 0:00:13]}  Rh3+ {[%clk 0:01:40]} 44. Kg1 {[%clk 0:00:14]}  Rd1+ {[%clk 0:01:40]} 45. Kg2 {[%clk 0:00:07]}  f3+ {[%clk 0:01:40]} 46. Kf2 {[%clk 0:00:07]}  Rh2+ {[%clk 0:01:40]} 47. Ke3 {[%clk 0:00:08]}  Rxe2# {[%clk 0:01:40]} 0-1


[Site "https://www.chess.com"]

[Event "Titled Tuesday Blitz May 2 Late 2023"]
[White "Henriquez Villagra, Cristobal"]
[Black "Nazari, Arad"]
[WhiteFideId "3409350"]
[BlackFideId "12577324"]
[WhiteElo "2542"]
[BlackElo "2242"]
[Result "1-0"]
[Round "03"]
[TimeControl "180+2"]
[Date "2023.05.02"]
[WhiteClock "0:00:35"]
[BlackClock "0:00:11"]

1. e4 {[%clk 0:03:00]}  c5 {[%clk 0:02:52]} 2. Nf3 {[%clk 0:02:58]}  d6 {[%clk 0:02:53]} 3. Bb5+ {[%clk 0:02:58]}  Nd7 {[%clk 0:02:53]} 4. a4 {[%clk 0:02:54]}  Nf6 {[%clk 0:02:40]} 5. Nc3 {[%clk 0:02:49]}  e6 {[%clk 0:02:22]} 6. O-O {[%clk 0:02:45]}  Be7 {[%clk 0:02:22]} 7. d4 {[%clk 0:02:45]}  O-O {[%clk 0:02:13]} 8. d5 {[%clk 0:02:44]}  e5 {[%clk 0:02:11]} 9. a5 {[%clk 0:02:43]}  a6 {[%clk 0:02:01]} 10. Be2 {[%clk 0:02:40]}  Ne8 {[%clk 0:01:55]} 11. Nd2 {[%clk 0:02:39]}  f5 {[%clk 0:01:54]} 12. exf5 {[%clk 0:02:37]}  Rxf5 {[%clk 0:01:54]} 13. Nc4 {[%clk 0:02:33]}  Rf8 {[%clk 0:01:39]} 14. Ra4 {[%clk 0:02:28]}  Rb8 {[%clk 0:01:35]} 15. f4 {[%clk 0:02:19]}  exf4 {[%clk 0:01:23]} 16. Bxf4 {[%clk 0:02:20]}  b5 {[%clk 0:01:19]} 17. axb6 {[%clk 0:02:20]}  Nxb6 {[%clk 0:01:19]} 18. Nxb6 {[%clk 0:02:15]}  Rxb6 {[%clk 0:01:20]} 19. b3 {[%clk 0:02:11]}  Rb4 {[%clk 0:01:17]} 20. Rxb4 {[%clk 0:02:11]}  cxb4 {[%clk 0:01:18]} 21. Ne4 {[%clk 0:02:12]}  Qb6+ {[%clk 0:01:14]} 22. Kh1 {[%clk 0:02:11]}  Nf6 {[%clk 0:01:13]} 23. Ng5 {[%clk 0:02:04]}  Qc5 {[%clk 0:01:02]} 24. Bc4 {[%clk 0:01:49]}  a5 {[%clk 0:00:55]} 25. Qe1 {[%clk 0:01:21]}  Bd8 {[%clk 0:00:21]} 26. Ne6 {[%clk 0:01:17]}  Bxe6 {[%clk 0:00:19]} 27. Qxe6+ {[%clk 0:01:18]}  Rf7 {[%clk 0:00:15]} 28. Bxd6 {[%clk 0:01:16]}  Qd4 {[%clk 0:00:14]} 29. Bc5 {[%clk 0:00:59]}  Qxc5 {[%clk 0:00:13]} 30. d6 {[%clk 0:01:00]}  Qh5 {[%clk 0:00:11]} 31. d7 {[%clk 0:00:46]}  Kf8 {[%clk 0:00:11]} 32. g4 {[%clk 0:00:35]}  Qg6 {[%clk 0:00:11]} 33. g5 {[%clk 0:00:35]} 1-0


[Site "https://www.chess.com"]